fUSD/lending_fUSD_20260606
["ID","MTS","AMOUNT","RATE_DAILY","PERIOD"]
[424279378,1780733440000,-150.0,0.00013901,2]
[424279385,1780733440000,-150.0,0.00013901,2]
[424279379,1780733440000,-150.0,0.00013901,2]
[424279383,1780733440000,-150.0,0.00013901,2]
[424279382,1780733440000,-150.0,0.00013901,2]
[424279384,1780733440000,-170.0,0.00013901,2]
[424279389,1780733440000,-247.366,0.00013901,2]
[424279393,1780733440000,-1274.0,0.00013901,2]
[424279377,1780733440000,-166.66,0.00013836,2]
[424279381,1780733440000,-150.0,0.00013901,2]
[424279392,1780733440000,-3554.0,0.00013901,2]
[424279394,1780733440000,-500.0,0.00013903,2]
[424279400,1780733440000,-500.0,0.00013973,2]
[424279398,1780733440000,-1555.5,0.00013971,2]
[424279391,1780733440000,-1358.0,0.00013901,2]
[424279390,1780733440000,-150.0,0.00013901,2]
[424279402,1780733440000,-166.66,0.0001411,2]
[424279396,1780733440000,-166.66,0.00013919,2]
[424279399,1780733440000,-166.66,0.00013973,2]
[424279405,1780733440000,-500.0,0.00014283,2]
[424279417,1780733440000,-3716.01,0.00014497,2]
[424279375,1780733440000,-500.0,0.00013699,2]
[424279416,1780733440000,-2757.0,0.00014484,5]
[424279401,1780733440000,-250.0,0.00014,2]
[424279386,1780733440000,-150.0,0.00013901,2]
[424279361,1780733440000,-500.0,0.00013698,2]
[424279388,1780733440000,-150.0,0.00013901,2]
[424279415,1780733440000,-350.0,0.00014415,2]
[424279351,1780733440000,-171.35500035,0.00013545,2]
[424279350,1780733440000,-166.66,0.00013501,2]
[424279349,1780733440000,-262.0,0.00013425,2]
[424279353,1780733440000,-500.0,0.00013698,2]
[424279352,1780733440000,-500.0,0.00013598,2]
[424279356,1780733440000,-500.0,0.00013698,2]
[424279355,1780733440000,-500.0,0.00013698,2]
[424279358,1780733440000,-500.0,0.00013698,2]
[424279362,1780733440000,-500.0,0.00013698,2]
[424279363,1780733440000,-500.0,0.00013698,2]
[424279357,1780733440000,-500.0,0.00013698,2]
[424279387,1780733440000,-150.0,0.00013901,2]
[424279359,1780733440000,-500.0,0.00013698,2]
[424279364,1780733440000,-500.0,0.00013698,2]
[424279366,1780733440000,-500.0,0.00013698,2]
[424279371,1780733440000,-200.0,0.00013699,2]
[424279365,1780733440000,-500.0,0.00013698,2]
[424279372,1780733440000,-166.66,0.00013699,2]
[424279373,1780733440000,-2500.0,0.00013699,2]
[424279370,1780733440000,-500.0,0.00013698,2]
[424279367,1780733440000,-500.0,0.00013698,2]
[424279368,1780733440000,-500.0,0.00013698,2]
[424279369,1780733440000,-500.0,0.00013698,2]
[424279374,1780733440000,-500.0,0.00013699,2]
[424279376,1780733440000,-540.02755778,0.00013699,2]
[424279360,1780733440000,-500.0,0.00013698,2]
[424279407,1780733440000,-350.0,0.00014375,2]
[424279354,1780733440000,-500.0,0.00013698,2]
[424279406,1780733440000,-166.66,0.00014337,2]
[424279439,1780733440000,-500.0,0.00014939,2]
[424279446,1780733440000,-500.0,0.00014939,2]
[424279447,1780733440000,-500.0,0.00014939,2]
[424279445,1780733440000,-500.0,0.00014939,2]
[424279451,1780733440000,-500.0,0.00014939,2]
[424279450,1780733440000,-500.0,0.00014939,2]
[424279452,1780733440000,-500.0,0.00014939,2]
[424279454,1780733440000,-500.0,0.00014939,2]
[424279453,1780733440000,-500.0,0.00014939,2]
[424279455,1780733440000,-500.0,0.00014939,2]
[424279458,1780733440000,-500.0,0.00014939,2]
[424279456,1780733440000,-500.0,0.00014939,2]
[424279434,1780733440000,-500.0,0.00014939,2]
[424279457,1780733440000,-500.0,0.00014939,2]
[424279460,1780733440000,-500.0,0.00014939,2]
[424279461,1780733440000,-500.0,0.00014939,2]
[424279463,1780733440000,-500.0,0.00014939,2]
[424279465,1780733440000,-500.0,0.00014939,2]
[424279464,1780733440000,-500.0,0.00014939,2]
[424279469,1780733440000,-500.0,0.00014939,2]
[424279466,1780733440000,-500.0,0.00014939,2]
[424279467,1780733440000,-500.0,0.00014939,2]
[424279468,1780733440000,-500.0,0.00014939,2]
[424279470,1780733440000,-500.0,0.00014939,2]
[424279471,1780733440000,-500.0,0.00014939,2]
[424279404,1780733440000,-166.66,0.00014247,2]
[424279462,1780733440000,-500.0,0.00014939,2]
[424279435,1780733440000,-500.0,0.00014939,2]
[424279459,1780733440000,-500.0,0.00014939,2]
[424279432,1780733440000,-500.0,0.00014939,2]
[424279408,1780733440000,-166.66,0.00014384,2]
[424279412,1780733440000,-151.0,0.00014406,2]
[424279436,1780733440000,-500.0,0.00014939,2]
[424279410,1780733440000,-152.0,0.00014406,2]
[424279413,1780733440000,-185.6716272,0.00014406,2]
[424279414,1780733440000,-170.18481118,0.00014406,2]
[424279409,1780733440000,-1548.0,0.00014406,2]
[424279419,1780733440000,-1613.0535,0.00014519,2]
[424279424,1780733440000,-152.0,0.00014796,2]
[424279423,1780733440000,-166.66,0.00014755,2]
[424279420,1780733440000,-350.0,0.00014529,2]
[424279418,1780733440000,-350.0,0.00014515,2]
[424279428,1780733440000,-2103.57804607,0.000149,2]
[424279422,1780733440000,-350.0,0.00014637,2]
[424279411,1780733440000,-154.55676498,0.00014406,2]
[424279427,1780733440000,-514.75,0.00014852,2]
[424279421,1780733440000,-350.0,0.00014609,2]
[424279437,1780733440000,-500.0,0.00014939,2]
[424279431,1780733440000,-500.0,0.00014939,2]
[424279429,1780733440000,-25000.0,0.000149,3]
[424279443,1780733440000,-500.0,0.00014939,2]
[424279430,1780733440000,-150.77549905,0.000149,2]
[424279433,1780733440000,-500.0,0.00014939,2]
[424279441,1780733440000,-500.0,0.00014939,2]
[424279442,1780733440000,-500.0,0.00014939,2]
[424279425,1780733440000,-67244.73253929,0.0001484,2]
[424279426,1780733440000,-200.0,0.00014849,2]
[424279440,1780733440000,-500.0,0.00014939,2]
[424279487,1780733441000,-500.0,0.00014939,2]
[424279499,1780733441000,-500.0,0.00014939,2]
[424279489,1780733441000,-500.0,0.00014939,2]
[424279500,1780733441000,-500.0,0.00014939,2]
[424279491,1780733441000,-500.0,0.00014939,2]
[424279492,1780733441000,-500.0,0.00014939,2]
[424279490,1780733441000,-500.0,0.00014939,2]
[424279488,1780733441000,-500.0,0.00014939,2]
[424279485,1780733441000,-500.0,0.00014939,2]
[424279481,1780733441000,-500.0,0.00014939,2]
[424279483,1780733441000,-500.0,0.00014939,2]
[424279476,1780733441000,-500.0,0.00014939,2]
[424279484,1780733441000,-500.0,0.00014939,2]
[424279486,1780733441000,-500.0,0.00014939,2]
[424279480,1780733441000,-500.0,0.00014939,2]
[424279478,1780733441000,-500.0,0.00014939,2]
[424279477,1780733441000,-500.0,0.00014939,2]
[424279479,1780733441000,-500.0,0.00014939,2]
[424279475,1780733441000,-500.0,0.00014939,2]
[424279473,1780733441000,-500.0,0.00014939,2]
[424279472,1780733441000,-500.0,0.00014939,2]
[424279495,1780733441000,-500.0,0.00014939,2]
[424279482,1780733441000,-500.0,0.00014939,2]
[424279494,1780733441000,-500.0,0.00014939,2]
[424279474,1780733441000,-500.0,0.00014939,2]
[424279497,1780733441000,-500.0,0.00014939,2]
[424279493,1780733441000,-500.0,0.00014939,2]
[424279520,1780733441000,-140367.79982725,0.0001494,2]
[424279517,1780733441000,-3189.66596,0.0001494,2]
[424279518,1780733441000,-182538.4220556,0.0001494,2]
[424279515,1780733441000,-500.0,0.00014939,2]
[424279521,1780733441000,-2349.45264352,0.0001494,2]
[424279519,1780733441000,-3493.8285856,0.0001494,2]
[424279522,1780733441000,-4705.71500095,0.0001494,2]
[424279513,1780733441000,-500.0,0.00014939,2]
[424279514,1780733441000,-500.0,0.00014939,2]
[424279510,1780733441000,-500.0,0.00014939,2]
[424279506,1780733441000,-500.0,0.00014939,2]
[424279516,1780733441000,-652.1670154,0.0001494,2]
[424279511,1780733441000,-500.0,0.00014939,2]
[424279504,1780733441000,-500.0,0.00014939,2]
[424279509,1780733441000,-500.0,0.00014939,2]
[424279507,1780733441000,-500.0,0.00014939,2]
[424279498,1780733441000,-500.0,0.00014939,2]
[424279503,1780733441000,-500.0,0.00014939,2]
[424279508,1780733441000,-500.0,0.00014939,2]
[424279502,1780733441000,-500.0,0.00014939,2]
[424279505,1780733441000,-500.0,0.00014939,2]
[424279501,1780733441000,-500.0,0.00014939,2]
[424279496,1780733441000,-500.0,0.00014939,2]
[424279512,1780733441000,-500.0,0.00014939,2]
[424279533,1780733443000,-1432.12205884,0.000109,2]
[424279532,1780733443000,-592.91556407,0.000109,2]
[424279537,1780733444000,-2250.45706234,0.000109,2]
[424279560,1780733737000,115000.0,0.00023,30]
[424279562,1780733794000,945.0,0.00030137,120]
[424279570,1780734034000,591.31851195,0.00024175,120]
[424279569,1780734034000,591.31851195,0.0002404,120]
[424279578,1780734530000,-211.8113,8.408e-05,2]
[424279577,1780734530000,-150.0,8.382e-05,2]
[424279576,1780734530000,-293.61050332,8.251e-05,2]
[424279580,1780734530000,-500.0,8.446e-05,2]
[424279579,1780734530000,-500.0,8.446e-05,2]
[424279581,1780734530000,-500.0,8.446e-05,2]
[424279582,1780734530000,-500.0,8.446e-05,2]
[424279583,1780734530000,-500.0,8.446e-05,2]
[424279585,1780734530000,-490.39630737,8.446e-05,2]
[424279584,1780734530000,-393.35715975,8.446e-05,2]
[424279589,1780734531000,-500.0,8.446e-05,2]
[424279588,1780734531000,-500.0,8.446e-05,2]
[424279587,1780734531000,-500.0,8.446e-05,2]
[424279586,1780734531000,-9.60369263,8.446e-05,2]
[424279591,1780734532000,-500.0,8.446e-05,2]
[424279592,1780734532000,-500.0,8.446e-05,2]
[424279593,1780734532000,-500.0,8.446e-05,2]
[424279594,1780734532000,-500.0,8.446e-05,2]
[424279590,1780734532000,-500.0,8.446e-05,2]
[424279596,1780734532000,-470.42842219,8.446e-05,2]
[424279597,1780734532000,-500.0,8.446e-05,2]
[424279599,1780734532000,-500.0,8.446e-05,2]
[424279598,1780734532000,-500.0,8.446e-05,2]
[424279600,1780734532000,-489.56814237,8.446e-05,2]
[424279595,1780734532000,-29.57157781,8.446e-05,2]
[424279607,1780734555000,-500.0,8.446e-05,2]
[424279608,1780734555000,-500.0,8.446e-05,2]
[424279606,1780734555000,-10.43185763,8.446e-05,2]
[424279609,1780734555000,-500.0,8.446e-05,2]
[424279611,1780734555000,-500.0,8.446e-05,2]
[424279612,1780734555000,-500.0,8.446e-05,2]
[424279610,1780734555000,-500.0,8.446e-05,2]
[424279613,1780734556000,-500.0,8.446e-05,2]
[424279614,1780734556000,-500.0,8.446e-05,2]
[424279621,1780734556000,-500.0,8.446e-05,2]
[424279615,1780734556000,-239.51035492,8.446e-05,2]
[424279616,1780734556000,-260.48964508,8.446e-05,2]
[424279617,1780734556000,-500.0,8.446e-05,2]
[424279618,1780734556000,-544.91239107,8.446e-05,2]
[424279619,1780734556000,-500.0,8.446e-05,2]
[424279620,1780734556000,-500.0,8.446e-05,2]
[424279622,1780734556000,-500.0,8.446e-05,2]
[424279631,1780734556000,-500.0,8.446e-05,2]
[424279623,1780734556000,-500.0,8.446e-05,2]
[424279634,1780734556000,-31.59415807,8.446e-05,2]
[424279633,1780734556000,-500.0,8.446e-05,2]
[424279632,1780734556000,-500.0,8.446e-05,2]
[424279630,1780734556000,-500.0,8.446e-05,2]
[424279624,1780734556000,-444.5401764,8.446e-05,2]
[424279629,1780734556000,-500.0,8.446e-05,2]
[424279625,1780734556000,-55.4598236,8.446e-05,2]
[424279627,1780734556000,-500.0,8.446e-05,2]
[424279626,1780734556000,-500.0,8.446e-05,2]
[424279628,1780734556000,-500.0,8.446e-05,2]
[424279636,1780734580000,-167.56571736,8.451e-05,2]
[424279635,1780734580000,-300.0,8.447e-05,2]
[424279637,1780734605000,-4511.03229504,8.451e-05,2]
[424279639,1780734605000,-548.14222196,8.451e-05,2]
[424279638,1780734605000,-4511.03229504,8.451e-05,2]
[424279655,1780734631000,-773.1519251,8.348e-05,2]
[424279653,1780734631000,-1379.15588592,8.348e-05,2]
[424279651,1780734631000,-15885.0057889,8.348e-05,2]
[424279652,1780734631000,-7583.83435802,8.348e-05,2]
[424279650,1780734631000,-113221.03604091,8.348e-05,2]
[424279649,1780734631000,-11496.38648207,8.348e-05,2]
[424279654,1780734631000,-622.24371639,8.348e-05,2]
[424279673,1780734637000,-450.0,8.348e-05,2]
[424279687,1780734640000,-4743.88431174,8.348e-05,2]
[424279698,1780734643000,-154.44255703,8.348e-05,2]
[424279702,1780734643000,-1125.0,8.348e-05,2]
[424279697,1780734643000,-2053.80147906,8.348e-05,2]
[424279707,1780734645000,-328.55879998,8.348e-05,2]
[424279708,1780734645000,-762.0,8.348e-05,2]
[424279709,1780734645000,-2644.29058862,8.348e-05,2]
[424279724,1780735103000,18082.0,0.000301,120]
[424279737,1780735383000,-150.0,8.256e-05,2]
[424279735,1780735383000,-177.52,8.219e-05,2]
[424279736,1780735383000,-499.98,8.219e-05,2]
[424279732,1780735383000,-300.0,8.18e-05,2]
[424279733,1780735383000,-4593.182,8.181e-05,2]
[424279734,1780735383000,-240.62,8.181e-05,2]
[424279731,1780735383000,-150.0,8.179e-05,2]
[424279730,1780735383000,-250.0,8.178e-05,2]
[424279729,1780735383000,-185.504588,8.178e-05,2]
[424279727,1780735383000,-331.33425618,8.172e-05,2]
[424279728,1780735383000,-250.0,8.175e-05,2]
[424279739,1780735384000,-500.0,8.336e-05,2]
[424279741,1780735384000,-563.74022674,8.336e-05,2]
[424279742,1780735384000,-500.0,8.336e-05,2]
[424279740,1780735384000,-500.0,8.336e-05,2]
[424279743,1780735384000,-308.11892908,8.336e-05,2]
[424279738,1780735384000,-500.0,8.336e-05,2]
[424279744,1780735386000,-191.88107092,8.336e-05,2]
[424279745,1780735386000,-500.0,8.336e-05,2]
[424279747,1780735386000,-500.0,8.336e-05,2]
[424279752,1780735386000,-500.0,8.336e-05,2]
[424279748,1780735386000,-500.0,8.336e-05,2]
[424279753,1780735386000,-500.0,8.336e-05,2]
[424279751,1780735386000,-500.0,8.336e-05,2]
[424279750,1780735386000,-500.0,8.336e-05,2]
[424279749,1780735386000,-500.0,8.336e-05,2]
[424279746,1780735386000,-500.0,8.336e-05,2]
[424279757,1780735386000,-446.65945007,8.336e-05,2]
[424279763,1780735386000,-500.0,8.336e-05,2]
[424279764,1780735386000,-361.45947901,8.336e-05,2]
[424279761,1780735386000,-500.0,8.336e-05,2]
[424279762,1780735386000,-500.0,8.336e-05,2]
[424279754,1780735386000,-500.0,8.336e-05,2]
[424279758,1780735386000,-500.0,8.336e-05,2]
[424279755,1780735386000,-500.0,8.336e-05,2]
[424279760,1780735386000,-500.0,8.336e-05,2]
[424279759,1780735386000,-500.0,8.336e-05,2]
[424279756,1780735386000,-500.0,8.336e-05,2]
[424279775,1780735387000,-5666.793534,8.337e-05,2]
[424279774,1780735387000,-150.0,8.337e-05,2]
[424279773,1780735387000,-500.0,8.336e-05,2]
[424279772,1780735387000,-500.0,8.336e-05,2]
[424279771,1780735387000,-500.0,8.336e-05,2]
[424279770,1780735387000,-500.0,8.336e-05,2]
[424279769,1780735387000,-544.66594501,8.336e-05,2]
[424279768,1780735387000,-500.0,8.336e-05,2]
[424279766,1780735387000,-500.0,8.336e-05,2]
[424279767,1780735387000,-500.0,8.336e-05,2]
[424279765,1780735387000,-138.54052099,8.336e-05,2]
[424279776,1780735392000,-10000.0,8.337e-05,2]
[424279777,1780735393000,-9333.196466,8.337e-05,2]
[424279778,1780735393000,-666.803534,8.337e-05,2]
[424279780,1780735396000,-299.99,8.337e-05,2]
[424279783,1780735396000,-7894.293534,8.337e-05,2]
[424279782,1780735396000,-150.99,8.337e-05,2]
[424279781,1780735396000,-368.14,8.337e-05,2]
[424279779,1780735396000,-1286.586466,8.337e-05,2]
[424279785,1780735400000,-150.0,8.341e-05,2]
[424279784,1780735400000,-2105.696466,8.337e-05,2]
[424279787,1780735401000,-151.0,8.345e-05,2]
[424279786,1780735401000,-151.0,8.345e-05,2]
[424279790,1780735401000,-208.78668532,8.347e-05,2]
[424279791,1780735401000,-175.29589457,8.347e-05,2]
[424279792,1780735401000,-500.0,8.347e-05,2]
[424279793,1780735401000,-614.33058742,8.347e-05,2]
[424279788,1780735401000,-151.0,8.345e-05,2]
[424279798,1780735401000,-500.0,8.347e-05,2]
[424279797,1780735401000,-500.0,8.347e-05,2]
[424279799,1780735401000,-500.0,8.347e-05,2]
[424279801,1780735401000,-2355.10254741,8.348e-05,2]
[424279800,1780735401000,-500.0,8.347e-05,2]
[424279789,1780735401000,-150.13075189,8.347e-05,2]
[424279796,1780735401000,-500.0,8.347e-05,2]
[424279794,1780735401000,-287.65706739,8.347e-05,2]
[424279795,1780735401000,-500.0,8.347e-05,2]
[424279802,1780735402000,-10000.0,8.348e-05,2]
[424279805,1780735411000,-6132.958,8.348e-05,2]
[424279804,1780735411000,-192.496,8.181e-05,2]
[424279803,1780735411000,-3674.546,8.181e-05,2]
[424279806,1780735414000,-2637.823696,8.178e-05,2]
[424279807,1780735414000,-7362.176304,8.348e-05,2]
[424279809,1780735552000,235.47,0.00030082,120]
[424279810,1780735573000,-10000.0,8.329e-05,2]
[424279811,1780735575000,-10000.0,8.329e-05,2]
[424279812,1780735576000,-10000.0,8.329e-05,2]
[424279814,1780735577000,-91.4089645,8.329e-05,2]
[424279815,1780735577000,-500.0,8.347e-05,2]
[424279813,1780735577000,-10000.0,8.329e-05,2]
[424279818,1780735577000,-500.0,8.347e-05,2]
[424279816,1780735577000,-445.21265022,8.347e-05,2]
[424279817,1780735577000,-500.0,8.347e-05,2]
[424279819,1780735577000,-500.0,8.347e-05,2]
[424279827,1780735578000,-10000.0,8.348e-05,2]
[424279820,1780735578000,-500.0,8.347e-05,2]
[424279823,1780735578000,-500.0,8.347e-05,2]
[424279821,1780735578000,-554.4665945,8.347e-05,2]
[424279824,1780735578000,-280.0314112,8.347e-05,2]
[424279826,1780735578000,-4927.52043241,8.348e-05,2]
[424279825,1780735578000,-201.35994717,8.347e-05,2]
[424279822,1780735578000,-500.0,8.347e-05,2]
[424279828,1780735579000,-10000.0,8.348e-05,2]
[424279829,1780735581000,-10000.0,8.348e-05,2]
[424279831,1780735582000,-10000.0,8.348e-05,2]
[424279830,1780735582000,-10000.0,8.348e-05,2]
[424279832,1780735617000,-1163.5913262,8.335e-05,2]
[424279833,1780735617000,-8836.4086738,8.348e-05,2]
[424279834,1780735618000,-10000.0,8.348e-05,2]
[424279835,1780735619000,-10000.0,8.348e-05,2]
[424279836,1780735620000,-10000.0,8.348e-05,2]
[424279837,1780735621000,-10000.0,8.348e-05,2]
[424279860,1780735721000,-500.0,8.247e-05,2]
[424279859,1780735721000,-500.0,8.247e-05,2]
[424279842,1780735721000,-500.0,8.247e-05,2]
[424279843,1780735721000,-500.0,8.247e-05,2]
[424279844,1780735721000,-472.46134814,8.247e-05,2]
[424279845,1780735721000,-500.0,8.247e-05,2]
[424279846,1780735721000,-500.0,8.247e-05,2]
[424279848,1780735721000,-168.41861008,8.247e-05,2]
[424279847,1780735721000,-500.0,8.247e-05,2]
[424279849,1780735721000,-500.0,8.247e-05,2]
[424279861,1780735721000,-791.89018817,8.248e-05,2]
[424279851,1780735721000,-500.0,8.247e-05,2]
[424279852,1780735721000,-500.0,8.247e-05,2]
[424279853,1780735721000,-500.0,8.247e-05,2]
[424279854,1780735721000,-500.0,8.247e-05,2]
[424279855,1780735721000,-500.0,8.247e-05,2]
[424279856,1780735721000,-500.0,8.247e-05,2]
[424279858,1780735721000,-567.22985361,8.247e-05,2]
[424279857,1780735721000,-500.0,8.247e-05,2]
[424279850,1780735721000,-500.0,8.247e-05,2]
[424279862,1780735741000,1249.56294732,0.00030099,120]
[424279868,1780735794000,340.06781371,8.247e-05,2]
[424279869,1780735794000,159.93218629,8.247e-05,2]
[424279871,1780735798000,-2951.68822599,8.248e-05,2]
[424279870,1780735798000,-4503.55491284,8.248e-05,2]
[424279872,1780735799000,-10000.0,8.248e-05,2]
[424279873,1780735800000,-10000.0,8.248e-05,2]
[424279874,1780735801000,-10000.0,8.248e-05,2]
[424279876,1780735801000,174.94483337,8.247e-05,2]
[424279879,1780735801000,66.77779419,8.247e-05,2]
[424279877,1780735801000,57.95516663,8.247e-05,2]
[424279878,1780735801000,175.26703918,8.247e-05,2]
[424279875,1780735801000,9.05516663,8.247e-05,2]
[424279880,1780735802000,-10000.0,8.248e-05,2]
[424279882,1780735806000,16.40004412,8.245e-05,2]
[424279881,1780735806000,183.59995588,8.245e-05,2]
[424279883,1780735810000,-10000.0,8.248e-05,2]
[424279884,1780735812000,-10000.0,8.248e-05,2]
[424279885,1780735813000,-10000.0,8.248e-05,2]
[424279886,1780735817000,135.69649958,8.245e-05,2]
[424279887,1780735817000,154.98,8.245e-05,2]
[424279888,1780735817000,181.67269453,8.245e-05,2]
[424279889,1780735817000,156.4034983,8.245e-05,2]
[424279892,1780735817000,154.98,8.245e-05,2]
[424279890,1780735817000,300.0,8.245e-05,2]
[424279891,1780735817000,250.37775007,8.245e-05,2]
[424279894,1780735817000,175.26703918,8.245e-05,2]
[424279897,1780735817000,-10000.0,8.248e-05,2]
[424279896,1780735817000,99.17772909,8.245e-05,2]
[424279895,1780735817000,158.54478925,8.245e-05,2]
[424279893,1780735817000,232.9,8.245e-05,2]
[424279898,1780735821000,-10000.0,8.248e-05,2]
[424279899,1780735825000,-10000.0,8.248e-05,2]
[424279902,1780735831000,-129997.70078268,8.248e-05,2]
[424279907,1780735831000,-1260.66576657,8.248e-05,2]
[424279906,1780735831000,-6139.6,8.248e-05,2]
[424279904,1780735831000,-194668.6293853,8.248e-05,2]
[424279905,1780735831000,-1254.41808677,8.248e-05,2]
[424279903,1780735831000,-86843.37493464,8.248e-05,2]
[424279900,1780735831000,-10000.0,8.248e-05,2]
[424279901,1780735831000,-1056716.54058063,8.248e-05,2]
[424279927,1780735835000,-10000.0,8.248e-05,2]
[424279928,1780735836000,-10000.0,8.248e-05,2]
[424279939,1780735837000,-845.42697033,8.248e-05,2]
[424279929,1780735837000,-10000.0,8.248e-05,2]
[424279931,1780735837000,-5341.04472836,8.248e-05,2]
[424279941,1780735837000,-422.6,8.248e-05,2]
[424279940,1780735837000,-8796.78673679,8.248e-05,2]
[424279937,1780735837000,-282.52752863,8.248e-05,2]
[424279942,1780735838000,-2054.57005086,8.248e-05,2]
[424279966,1780735840000,-420.55738969,8.248e-05,2]
[424279965,1780735840000,-42469.51088371,8.248e-05,2]
[424279963,1780735840000,-472.03009084,8.248e-05,2]
[424279962,1780735840000,-506.37642362,8.248e-05,2]
[424279984,1780735842000,-18481.52718607,8.248e-05,2]
[424279983,1780735842000,-900.0,8.248e-05,2]
[424279990,1780735843000,-2833.6326345,8.248e-05,2]
[424279986,1780735843000,-581.35287267,8.248e-05,2]
[424279985,1780735843000,-362.18500522,8.248e-05,2]
[424279992,1780735845000,-2644.29058862,8.248e-05,2]
[424279991,1780735845000,-7000.0,8.248e-05,2]
[424279995,1780735861000,43.75426209,8.247e-05,2]
[424279994,1780735861000,106.24573791,8.247e-05,2]
[424279996,1780735863000,230.88320286,8.247e-05,2]
[424279999,1780735863000,274.36071179,8.247e-05,2]
[424279997,1780735863000,152.60098935,8.247e-05,2]
[424279998,1780735863000,116.51580779,8.247e-05,2]
[424280002,1780735899000,1181.55819315,8.247e-05,3]
[424280003,1780735929000,-320.0,7.78e-05,2]
[424280008,1780736046000,-350.06,7.78e-05,2]
[424280009,1780736046000,-150.0,7.858e-05,2]
[424280010,1780736046000,-312.40637375,7.863e-05,2]
[424280007,1780736046000,-150.0,7.707e-05,2]
[424280005,1780736046000,-150.0,7.476e-05,2]
[424280006,1780736046000,-150.0,7.591e-05,2]
[424280011,1780736047000,-150.0,7.936e-05,2]
[424280013,1780736047000,-2497.86,7.963e-05,2]
[424280014,1780736047000,-150.0,8.001e-05,2]
[424280012,1780736047000,-1980.125075,7.945e-05,2]
[424280015,1780736072000,-150.0,7.251e-05,2]
[424280017,1780736160000,260.1,6.111e-05,2]
[424280018,1780736167000,-150.0,7.773e-05,2]
[424280021,1780736194000,-150.0,7.81e-05,2]
[424280030,1780736257000,-150.0,8.132e-05,2]
[424280029,1780736257000,-250.0,8.052e-05,2]
[424280027,1780736257000,-150.0,7.505e-05,2]
[424280028,1780736257000,-3001.29,7.738e-05,2]
[424280033,1780736293000,-209.68,7.814e-05,2]
[424280034,1780736316000,-150.0,7.966e-05,2]
[424280035,1780736321000,200.0,8.237e-05,7]
[424280036,1780736335000,-10000.0,7.874e-05,2]
[424280037,1780736336000,-10000.0,7.874e-05,2]
[424280038,1780736337000,-10000.0,7.874e-05,2]
[424280039,1780736338000,-10000.0,7.874e-05,2]
[424280040,1780736339000,-10000.0,7.874e-05,2]
[424280041,1780736344000,-10000.0,7.874e-05,2]
[424280043,1780736345000,-10000.0,7.874e-05,2]
[424280042,1780736345000,350.0,8.356e-05,3]
[424280044,1780736350000,-6378.94,7.874e-05,2]
[424280049,1780736480000,-295.35405996,7.756e-05,2]
[424280048,1780736480000,-7942.99,7.756e-05,2]
[424280050,1780736480000,-295.65594004,8.147e-05,2]
[424280052,1780736503000,196.22,0.00030082,120]
[424280055,1780736536000,350.0,8.356e-05,3]
[424280057,1780736549000,-1838.0,7.753e-05,2]
[424280059,1780736591000,9050.0,0.00030137,120]
[424280064,1780736662000,-145.69,7.83e-05,2]
[424280062,1780736662000,-1856.89,7.637e-05,2]
[424280063,1780736662000,-14.42,7.753e-05,2]
[424280061,1780736662000,-200.0,7.59e-05,2]
[424280066,1780736705000,-4.31,7.83e-05,2]
[424280065,1780736705000,-2462.22,7.681e-05,2]
[424280069,1780736705000,-6815.4019,8.148e-05,2]
[424280068,1780736705000,-500.0,8.147e-05,2]
[424280067,1780736705000,-165.0,7.907e-05,2]
[424280070,1780736705000,-53.0681,8.148e-05,2]
[424280071,1780736712000,-4125.8198,8.148e-05,2]
[424280072,1780736712000,-3519.1802,8.148e-05,2]
[424280074,1780736753000,2000.0,0.00030137,120]
[424280075,1780736768000,350.0,8.356e-05,3]
[424280076,1780736818000,2500.0,0.00030137,120]
[424280082,1780736858000,-1000.0,7.834e-05,2]